[Event "Titled Tuesday Blitz August 22 Early 2023"]
[White "Mikhaylova, Irina"]
[Black "Kula, Robert"]
[WhiteFideId "4109040"]
[BlackFideId "1101218"]
[WhiteElo "2333"]
[BlackElo "2114"]
[Result "1-0"]
[Round "4"]
[TimeControl "180+1"]
[Date "2023.08.22"]
[WhiteClock "0:00:38"]
[BlackClock "0:00:39"]
[Board "249"]

1. Nf3 {[%clk 0:02:59]}  g6 {[%clk 0:02:59]} 2. d4 {[%clk 0:02:56]}  Bg7 {[%clk 0:02:59]} 3. c4 {[%clk 0:02:57]}  b6 {[%clk 0:03:00]} 4. Nc3 {[%clk 0:02:56]}  Bb7 {[%clk 0:03:00]} 5. e4 {[%clk 0:02:56]}  e6 {[%clk 0:02:58]} 6. Be2 {[%clk 0:02:49]}  Ne7 {[%clk 0:02:57]} 7. O-O {[%clk 0:02:49]}  O-O {[%clk 0:02:57]} 8. d5 {[%clk 0:02:45]}  d6 {[%clk 0:02:51]} 9. dxe6 {[%clk 0:02:23]}  fxe6 {[%clk 0:02:50]} 10. Ng5 {[%clk 0:02:23]}  Qd7 {[%clk 0:02:49]} 11. Bg4 {[%clk 0:02:22]}  Rf6 {[%clk 0:02:35]} 12. e5 {[%clk 0:02:22]}  dxe5 {[%clk 0:02:35]} 13. Qxd7 {[%clk 0:02:20]}  Nxd7 {[%clk 0:02:34]} 14. Bxe6+ {[%clk 0:02:19]}  Rxe6 {[%clk 0:02:34]} 15. Nxe6 {[%clk 0:02:19]}  c5 {[%clk 0:02:20]} 16. Rd1 {[%clk 0:02:01]}  Nf6 {[%clk 0:02:12]} 17. Bg5 {[%clk 0:01:56]}  Nf5 {[%clk 0:02:11]} 18. Nxg7 {[%clk 0:01:28]}  Kxg7 {[%clk 0:02:08]} 19. Bxf6+ {[%clk 0:01:28]}  Kxf6 {[%clk 0:02:08]} 20. Nd5+ {[%clk 0:01:27]}  Kf7 {[%clk 0:01:57]} 21. Nc7 {[%clk 0:01:27]}  Rc8 {[%clk 0:01:51]} 22. Nb5 {[%clk 0:01:27]}  Ke6 {[%clk 0:01:30]} 23. Nxa7 {[%clk 0:01:23]}  Ra8 {[%clk 0:01:30]} 24. Nb5 {[%clk 0:01:23]}  Nd4 {[%clk 0:01:29]} 25. Nc7+ {[%clk 0:01:23]}  Kd6 {[%clk 0:01:27]} 26. Nxa8 {[%clk 0:01:23]}  Bxa8 {[%clk 0:01:27]} 27. f3 {[%clk 0:01:17]}  Bb7 {[%clk 0:01:24]} 28. Kf2 {[%clk 0:01:17]}  Ba6 {[%clk 0:01:24]} 29. b3 {[%clk 0:01:16]}  Ke6 {[%clk 0:01:22]} 30. Rac1 {[%clk 0:01:15]}  Bb7 {[%clk 0:01:21]} 31. Rd2 {[%clk 0:01:15]}  h5 {[%clk 0:01:19]} 32. h4 {[%clk 0:01:15]}  Kf5 {[%clk 0:01:18]} 33. Rb2 {[%clk 0:01:08]}  Nc6 {[%clk 0:01:15]} 34. a3 {[%clk 0:01:07]}  e4 {[%clk 0:01:07]} 35. fxe4+ {[%clk 0:00:55]}  Kxe4 {[%clk 0:01:06]} 36. b4 {[%clk 0:00:53]}  Ne5 {[%clk 0:01:05]} 37. Re2+ {[%clk 0:00:52]}  Kf5 {[%clk 0:01:02]} 38. Rxe5+ {[%clk 0:00:51]}  Kxe5 {[%clk 0:01:02]} 39. bxc5 {[%clk 0:00:52]}  bxc5 {[%clk 0:01:02]} 40. Ke3 {[%clk 0:00:52]}  Bxg2 {[%clk 0:01:02]} 41. a4 {[%clk 0:00:52]}  Kf5 {[%clk 0:00:55]} 42. a5 {[%clk 0:00:48]}  Bc6 {[%clk 0:00:54]} 43. Rb1 {[%clk 0:00:44]}  Kg4 {[%clk 0:00:53]} 44. Rb6 {[%clk 0:00:44]}  Bd7 {[%clk 0:00:46]} 45. a6 {[%clk 0:00:43]}  Kxh4 {[%clk 0:00:45]} 46. a7 {[%clk 0:00:44]}  g5 {[%clk 0:00:45]} 47. a8=Q {[%clk 0:00:44]}  Bf5 {[%clk 0:00:43]} 48. Qh1+ {[%clk 0:00:43]}  Kg4 {[%clk 0:00:43]} 49. Rb5 {[%clk 0:00:42]}  h4 {[%clk 0:00:42]} 50. Rxc5 {[%clk 0:00:42]}  Bc2 {[%clk 0:00:41]} 51. Qg1+ {[%clk 0:00:42]}  Kh3 {[%clk 0:00:41]} 52. Rxg5 {[%clk 0:00:41]}  Be4 {[%clk 0:00:40]} 53. Qg4+ {[%clk 0:00:38]}  Kh2 {[%clk 0:00:39]} 54. Qxh4# {[%clk 0:00:38]} 1-0


[Site "https://www.chess.com"]

[Event "Titled Tuesday Blitz August 22 Early 2023"]
[White "Seifert, Henryk"]
[Black "Goswami, Vedant"]
[WhiteFideId "1100963"]
[BlackFideId "5003725"]
[WhiteElo "2101"]
[BlackElo "2315"]
[Result "1-0"]
[Round "4"]
[TimeControl "180+1"]
[Date "2023.08.22"]
[WhiteClock "0:00:32"]
[BlackClock "0:00:56"]
[Board "251"]

1. e4 {[%clk 0:03:00]}  a6 {[%clk 0:02:49]} 2. d4 {[%clk 0:02:59]}  c6 {[%clk 0:02:48]} 3. Bd3 {[%clk 0:02:56]}  d5 {[%clk 0:02:48]} 4. e5 {[%clk 0:02:51]}  g6 {[%clk 0:02:45]} 5. Nf3 {[%clk 0:02:35]}  Nh6 {[%clk 0:02:38]} 6. O-O {[%clk 0:02:33]}  Bf5 {[%clk 0:02:35]} 7. h3 {[%clk 0:02:27]}  Bxd3 {[%clk 0:02:29]} 8. Qxd3 {[%clk 0:02:28]}  e6 {[%clk 0:02:29]} 9. c3 {[%clk 0:02:23]}  Nf5 {[%clk 0:02:28]} 10. Nbd2 {[%clk 0:02:19]}  Be7 {[%clk 0:02:28]} 11. g4 {[%clk 0:02:10]}  Ng7 {[%clk 0:02:26]} 12. Re1 {[%clk 0:01:57]}  h5 {[%clk 0:02:17]} 13. Nf1 {[%clk 0:01:53]}  hxg4 {[%clk 0:02:14]} 14. hxg4 {[%clk 0:01:54]}  Nd7 {[%clk 0:02:14]} 15. Ng3 {[%clk 0:01:44]}  Nf8 {[%clk 0:02:13]} 16. Kg2 {[%clk 0:01:40]}  Qd7 {[%clk 0:02:07]} 17. b4 {[%clk 0:01:34]}  Nh7 {[%clk 0:02:04]} 18. a4 {[%clk 0:01:33]}  O-O-O {[%clk 0:01:49]} 19. Be3 {[%clk 0:01:31]}  Rdg8 {[%clk 0:01:42]} 20. b5 {[%clk 0:01:31]}  a5 {[%clk 0:01:39]} 21. Rab1 {[%clk 0:01:23]}  f5 {[%clk 0:01:38]} 22. exf6 {[%clk 0:01:16]}  Bxf6 {[%clk 0:01:38]} 23. g5 {[%clk 0:01:02]}  Nxg5 {[%clk 0:01:16]} 24. Bxg5 {[%clk 0:00:53]}  Bxg5 {[%clk 0:01:11]} 25. Nxg5 {[%clk 0:00:54]}  e5 {[%clk 0:01:12]} 26. bxc6 {[%clk 0:00:39]}  Qg4 {[%clk 0:01:06]} 27. cxb7+ {[%clk 0:00:34]}  Kb8 {[%clk 0:00:56]} 28. Qa6 {[%clk 0:00:32]} 1-0


[Site "https://www.chess.com"]

[Event "Titled Tuesday Blitz August 22 Early 2023"]
[White "Nihal Sarin"]
[Black "Demchenko, Anton"]
[WhiteFideId "25092340"]
[BlackFideId "4160258"]
[WhiteElo "3134"]
[BlackElo "2931"]
[Result "1/2-1/2"]
[Round "5"]
[TimeControl "180+1"]
[Date "2023.08.22"]
[WhiteClock "0:00:14"]
[BlackClock "0:00:16"]
[Board "1"]

1. c4 {[%clk 0:02:57]}  e5 {[%clk 0:02:59]} 2. Nc3 {[%clk 0:02:56]}  Nc6 {[%clk 0:02:59]} 3. g3 {[%clk 0:02:55]}  Nf6 {[%clk 0:02:57]} 4. Bg2 {[%clk 0:02:55]}  Bb4 {[%clk 0:02:57]} 5. Nd5 {[%clk 0:02:54]}  a5 {[%clk 0:02:53]} 6. e3 {[%clk 0:02:54]}  O-O {[%clk 0:02:53]} 7. Ne2 {[%clk 0:02:54]}  Bc5 {[%clk 0:02:48]} 8. O-O {[%clk 0:02:52]}  d6 {[%clk 0:02:47]} 9. a3 {[%clk 0:02:49]}  Nxd5 {[%clk 0:02:40]} 10. cxd5 {[%clk 0:02:50]}  Ne7 {[%clk 0:02:40]} 11. b3 {[%clk 0:02:47]}  Bb6 {[%clk 0:02:37]} 12. d4 {[%clk 0:02:47]}  Bg4 {[%clk 0:02:28]} 13. dxe5 {[%clk 0:02:42]}  dxe5 {[%clk 0:02:27]} 14. Bb2 {[%clk 0:02:43]}  f6 {[%clk 0:02:24]} 15. Qc2 {[%clk 0:02:35]}  Nc8 {[%clk 0:02:20]} 16. h3 {[%clk 0:02:03]}  Bxe2 {[%clk 0:02:14]} 17. Qxe2 {[%clk 0:02:03]}  Nd6 {[%clk 0:02:15]} 18. Rac1 {[%clk 0:02:02]}  Qe7 {[%clk 0:02:15]} 19. Rfd1 {[%clk 0:02:02]}  f5 {[%clk 0:02:15]} 20. Kh2 {[%clk 0:01:53]}  Rae8 {[%clk 0:02:14]} 21. Re1 {[%clk 0:01:53]}  Qf7 {[%clk 0:02:01]} 22. Qd2 {[%clk 0:01:38]}  f4 {[%clk 0:01:57]} 23. exf4 {[%clk 0:01:24]}  exf4 {[%clk 0:01:57]} 24. Rxe8 {[%clk 0:01:24]}  fxg3+ {[%clk 0:01:46]} 25. fxg3 {[%clk 0:01:23]}  Qxe8 {[%clk 0:01:47]} 26. Re1 {[%clk 0:01:19]}  Qd7 {[%clk 0:01:46]} 27. Re2 {[%clk 0:01:13]}  Rf7 {[%clk 0:01:37]} 28. h4 {[%clk 0:01:13]}  Qb5 {[%clk 0:01:19]} 29. Bh3 {[%clk 0:01:05]}  Qxe2+ {[%clk 0:01:14]} 30. Qxe2 {[%clk 0:01:05]}  Rf2+ {[%clk 0:01:15]} 31. Qxf2 {[%clk 0:01:06]}  Bxf2 {[%clk 0:01:16]} 32. Kg2 {[%clk 0:01:06]}  Bc5 {[%clk 0:01:13]} 33. a4 {[%clk 0:01:04]}  b5 {[%clk 0:00:58]} 34. Bc3 {[%clk 0:00:41]}  bxa4 {[%clk 0:00:43]} 35. bxa4 {[%clk 0:00:42]}  Bb6 {[%clk 0:00:44]} 36. Kf3 {[%clk 0:00:40]}  Kf8 {[%clk 0:00:43]} 37. Be6 {[%clk 0:00:40]}  Nb7 {[%clk 0:00:42]} 38. Bd7 {[%clk 0:00:38]}  Nc5 {[%clk 0:00:41]} 39. Bc6 {[%clk 0:00:39]}  g6 {[%clk 0:00:36]} 40. g4 {[%clk 0:00:39]}  Kf7 {[%clk 0:00:36]} 41. g5 {[%clk 0:00:40]}  Nb3 {[%clk 0:00:34]} 42. Kf4 {[%clk 0:00:29]}  Nc5 {[%clk 0:00:31]} 43. Bb5 {[%clk 0:00:28]}  Nb7 {[%clk 0:00:30]} 44. Kg4 {[%clk 0:00:25]}  Nd6 {[%clk 0:00:30]} 45. Bd3 {[%clk 0:00:25]}  Nc8 {[%clk 0:00:27]} 46. h5 {[%clk 0:00:24]}  Nd6 {[%clk 0:00:26]} 47. h6 {[%clk 0:00:25]}  Nc8 {[%clk 0:00:25]} 48. Bb5 {[%clk 0:00:25]}  Nd6 {[%clk 0:00:25]} 49. Bd7 {[%clk 0:00:26]}  Ne8 {[%clk 0:00:20]} 50. Be6+ {[%clk 0:00:23]}  Kf8 {[%clk 0:00:19]} 51. Kf3 {[%clk 0:00:24]}  Ke7 {[%clk 0:00:18]} 52. Bg8 {[%clk 0:00:23]}  Kf8 {[%clk 0:00:19]} 53. Be6 {[%clk 0:00:12]}  Ke7 {[%clk 0:00:19]} 54. Ke4 {[%clk 0:00:11]}  Kf8 {[%clk 0:00:19]} 55. Kd3 {[%clk 0:00:12]}  Ke7 {[%clk 0:00:18]} 56. Bg7 {[%clk 0:00:12]}  Bc5 {[%clk 0:00:13]} 57. Bc3 {[%clk 0:00:10]}  Bb6 {[%clk 0:00:13]} 58. Be5 {[%clk 0:00:11]}  Bc5 {[%clk 0:00:11]} 59. Kc4 {[%clk 0:00:08]}  Bb6 {[%clk 0:00:12]} 60. Kb5 {[%clk 0:00:08]}  Nd6+ {[%clk 0:00:12]} 61. Kc6 {[%clk 0:00:09]}  Ne8 {[%clk 0:00:10]} 62. Bg8 {[%clk 0:00:09]}  Kf8 {[%clk 0:00:10]} 63. Bxh7 {[%clk 0:00:09]}  Kf7 {[%clk 0:00:10]} 64. Kd7 {[%clk 0:00:10]}  Nd6 {[%clk 0:00:08]} 65. Bxd6 {[%clk 0:00:09]}  cxd6 {[%clk 0:00:09]} 66. Kxd6 {[%clk 0:00:10]}  Be3 {[%clk 0:00:09]} 67. Kc6 {[%clk 0:00:06]}  Bxg5 {[%clk 0:00:10]} 68. d6 {[%clk 0:00:07]}  Bxh6 {[%clk 0:00:10]} 69. d7 {[%clk 0:00:07]}  Bg5 {[%clk 0:00:11]} 70. Kc7 {[%clk 0:00:08]}  Kg7 {[%clk 0:00:11]} 71. Bxg6 {[%clk 0:00:06]}  Kxg6 {[%clk 0:00:12]} 72. d8=Q {[%clk 0:00:07]}  Bxd8+ {[%clk 0:00:12]} 73. Kxd8 {[%clk 0:00:08]}  Kf6 {[%clk 0:00:11]} 74. Kc7 {[%clk 0:00:09]}  Ke7 {[%clk 0:00:11]} 75. Kb6 {[%clk 0:00:10]}  Kd8 {[%clk 0:00:12]} 76. Kxa5 {[%clk 0:00:11]}  Kc8 {[%clk 0:00:13]} 77. Kb6 {[%clk 0:00:12]}  Kb8 {[%clk 0:00:13]} 78. a5 {[%clk 0:00:13]}  Ka8 {[%clk 0:00:14]} 79. a6 {[%clk 0:00:13]}  Kb8 {[%clk 0:00:15]} 80. a7+ {[%clk 0:00:14]}  Ka8 {[%clk 0:00:16]} 81. Ka6 {[%clk 0:00:14]} 1/2-1/2


[Site "https://www.chess.com"]

[Event "Titled Tuesday Blitz August 22 Early 2023"]
[White "Firouzja, Alireza"]
[Black "Zhigalko, Sergei"]
[WhiteFideId "12573981"]
[BlackFideId "13502956"]
[WhiteElo "3113"]
[BlackElo "2931"]
[Result "0-1"]
[Round "5"]
[TimeControl "180+1"]
[Date "2023.08.22"]
[WhiteClock "0:00:00"]
[BlackClock "0:00:03"]
[Board "2"]

1. e4 {[%clk 0:03:00]}  c5 {[%clk 0:03:00]} 2. Nf3 {[%clk 0:03:01]}  Nc6 {[%clk 0:03:00]} 3. Bb5 {[%clk 0:03:01]}  Nf6 {[%clk 0:03:01]} 4. e5 {[%clk 0:02:57]}  Nd5 {[%clk 0:03:00]} 5. O-O {[%clk 0:02:56]}  Nc7 {[%clk 0:03:00]} 6. Bxc6 {[%clk 0:02:57]}  dxc6 {[%clk 0:03:01]} 7. d3 {[%clk 0:02:55]}  h6 {[%clk 0:03:01]} 8. Be3 {[%clk 0:02:40]}  b6 {[%clk 0:03:01]} 9. Nc3 {[%clk 0:02:36]}  Bf5 {[%clk 0:02:55]} 10. d4 {[%clk 0:02:26]}  c4 {[%clk 0:02:48]} 11. Nh4 {[%clk 0:02:23]}  Bh7 {[%clk 0:02:44]} 12. e6 {[%clk 0:02:09]}  Nxe6 {[%clk 0:02:42]} 13. Qf3 {[%clk 0:02:09]}  Rc8 {[%clk 0:02:09]} 14. d5 {[%clk 0:01:52]}  cxd5 {[%clk 0:01:36]} 15. Nxd5 {[%clk 0:01:53]}  Ng5 {[%clk 0:01:34]} 16. Qg4 {[%clk 0:00:47]}  e6 {[%clk 0:01:25]} 17. Rad1 {[%clk 0:00:35]}  Bd6 {[%clk 0:00:50]} 18. Nc3 {[%clk 0:00:21]}  Bxc2 {[%clk 0:00:24]} 19. Rd4 {[%clk 0:00:13]}  O-O {[%clk 0:00:24]} 20. Nb5 {[%clk 0:00:08]}  Rc6 {[%clk 0:00:20]} 21. Bf4 {[%clk 0:00:08]}  f5 {[%clk 0:00:13]} 22. Qh5 {[%clk 0:00:07]}  Ne4 {[%clk 0:00:08]} 23. Ng6 {[%clk 0:00:06]}  Bd3 {[%clk 0:00:05]} 24. Nxf8 {[%clk 0:00:05]}  Qxf8 {[%clk 0:00:06]} 25. Nxd6 {[%clk 0:00:04]}  Nxd6 {[%clk 0:00:07]} 26. Re1 {[%clk 0:00:03]}  Nf7 {[%clk 0:00:08]} 27. Rd7 {[%clk 0:00:02]}  Be4 {[%clk 0:00:07]} 28. f3 {[%clk 0:00:02]}  Bd5 {[%clk 0:00:07]} 29. Be3 {[%clk 0:00:02]}  c3 {[%clk 0:00:06]} 30. bxc3 {[%clk 0:00:02]}  Rxc3 {[%clk 0:00:07]} 31. Qg6 {[%clk 0:00:02]}  Ne5 {[%clk 0:00:04]} 32. Rxg7+ {[%clk 0:00:01]}  Qxg7 {[%clk 0:00:05]} 33. Qxg7+ {[%clk 0:00:02]}  Kxg7 {[%clk 0:00:05]} 34. Bd4 {[%clk 0:00:03]}  Rc2 {[%clk 0:00:02]} 35. Bxe5+ {[%clk 0:00:02]}  Kg6 {[%clk 0:00:02]} 36. a3 {[%clk 0:00:03]}  b5 {[%clk 0:00:02]} 37. Rb1 {[%clk 0:00:03]}  a6 {[%clk 0:00:03]} 38. Ra1 {[%clk 0:00:02]}  h5 {[%clk 0:00:03]} 39. h4 {[%clk 0:00:02]}  Kf7 {[%clk 0:00:04]} 40. Rb1 {[%clk 0:00:02]}  Ke8 {[%clk 0:00:04]} 41. Rf1 {[%clk 0:00:02]}  Kd7 {[%clk 0:00:03]} 42. Kh2 {[%clk 0:00:02]}  a5 {[%clk 0:00:02]} 43. Kg3 {[%clk 0:00:02]}  b4 {[%clk 0:00:03]} 44. axb4 {[%clk 0:00:03]}  axb4 {[%clk 0:00:04]} 45. Rb1 {[%clk 0:00:03]}  b3 {[%clk 0:00:04]} 46. Ra1 {[%clk 0:00:03]}  Kc6 {[%clk 0:00:04]} 47. Ra8 {[%clk 0:00:02]}  Kb5 {[%clk 0:00:03]} 48. Rb8+ {[%clk 0:00:03]}  Kc4 {[%clk 0:00:03]} 49. Rc8+ {[%clk 0:00:03]}  Kd3 {[%clk 0:00:04]} 50. Rb8 {[%clk 0:00:03]}  Ke2 {[%clk 0:00:03]} 51. Kf4 {[%clk 0:00:04]}  Kf2 {[%clk 0:00:03]} 52. Bd4+ {[%clk 0:00:02]}  Kxg2 {[%clk 0:00:03]} 53. Rg8+ {[%clk 0:00:02]}  Kf1 {[%clk 0:00:03]} 54. Rh8 {[%clk 0:00:00]}  Ke2 {[%clk 0:00:03]} 0-1


[Site "https://www.chess.com"]

[Event "Titled Tuesday Blitz August 22 Early 2023"]
[White "Sjugirov, Sanan"]
[Black "Erigaisi Arjun"]
[WhiteFideId "4189302"]
[BlackFideId "35009192"]
[WhiteElo "2923"]
[BlackElo "3064"]
[Result "0-1"]
[Round "5"]
[TimeControl "180+1"]
[Date "2023.08.22"]
[WhiteClock "0:00:04"]
[BlackClock "0:00:08"]
[Board "3"]

1. c4 {[%clk 0:02:57]}  e5 {[%clk 0:02:57]} 2. g3 {[%clk 0:02:56]}  Na6 {[%clk 0:02:54]} 3. Bg2 {[%clk 0:02:55]}  Nc5 {[%clk 0:02:53]} 4. Nc3 {[%clk 0:02:53]}  Nf6 {[%clk 0:02:52]} 5. d3 {[%clk 0:02:51]}  a5 {[%clk 0:02:46]} 6. Nf3 {[%clk 0:02:50]}  d6 {[%clk 0:02:46]} 7. O-O {[%clk 0:02:49]}  Be7 {[%clk 0:02:46]} 8. b3 {[%clk 0:02:45]}  h5 {[%clk 0:02:41]} 9. h3 {[%clk 0:02:40]}  c6 {[%clk 0:02:37]} 10. e4 {[%clk 0:02:28]}  Ne6 {[%clk 0:02:30]} 11. d4 {[%clk 0:02:19]}  exd4 {[%clk 0:02:21]} 12. Nxd4 {[%clk 0:02:20]}  Nxd4 {[%clk 0:02:22]} 13. Qxd4 {[%clk 0:02:20]}  h4 {[%clk 0:02:22]} 14. g4 {[%clk 0:02:17]}  Nd7 {[%clk 0:02:20]} 15. Be3 {[%clk 0:02:11]}  Bf6 {[%clk 0:02:19]} 16. Qd2 {[%clk 0:02:09]}  g5 {[%clk 0:02:06]} 17. Rad1 {[%clk 0:02:06]}  Rg8 {[%clk 0:01:59]} 18. Na4 {[%clk 0:02:04]}  Be5 {[%clk 0:01:54]} 19. Nb2 {[%clk 0:01:25]}  Qe7 {[%clk 0:01:37]} 20. Nd3 {[%clk 0:01:24]}  b6 {[%clk 0:01:33]} 21. Nxe5 {[%clk 0:00:39]}  dxe5 {[%clk 0:01:34]} 22. Qd6 {[%clk 0:00:39]}  Rg6 {[%clk 0:01:10]} 23. Qc7 {[%clk 0:00:39]}  c5 {[%clk 0:01:09]} 24. Rd5 {[%clk 0:00:27]}  Qd8 {[%clk 0:01:01]} 25. Rxe5+ {[%clk 0:00:13]}  Nxe5 {[%clk 0:01:02]} 26. Qxe5+ {[%clk 0:00:14]}  Be6 {[%clk 0:01:02]} 27. Qh8+ {[%clk 0:00:08]}  Ke7 {[%clk 0:01:01]} 28. Qc3 {[%clk 0:00:08]}  Ra7 {[%clk 0:00:53]} 29. Qc1 {[%clk 0:00:07]}  Ke8 {[%clk 0:00:34]} 30. e5 {[%clk 0:00:07]}  Kf8 {[%clk 0:00:28]} 31. Be4 {[%clk 0:00:06]}  Rg8 {[%clk 0:00:28]} 32. Rd1 {[%clk 0:00:05]}  Rd7 {[%clk 0:00:28]} 33. Rxd7 {[%clk 0:00:05]}  Qxd7 {[%clk 0:00:28]} 34. Bxg5 {[%clk 0:00:05]}  Bxg4 {[%clk 0:00:29]} 35. Bh6+ {[%clk 0:00:03]}  Ke8 {[%clk 0:00:29]} 36. Kh2 {[%clk 0:00:04]}  Bxh3 {[%clk 0:00:21]} 37. Qf4 {[%clk 0:00:04]}  Be6 {[%clk 0:00:09]} 38. Bf3 {[%clk 0:00:04]}  Qd4 {[%clk 0:00:08]} 39. Qxd4 {[%clk 0:00:03]}  cxd4 {[%clk 0:00:09]} 40. Bd2 {[%clk 0:00:04]}  Kd7 {[%clk 0:00:08]} 41. c5 {[%clk 0:00:04]}  bxc5 {[%clk 0:00:08]} 42. Bxa5 {[%clk 0:00:04]}  c4 {[%clk 0:00:09]} 43. bxc4 {[%clk 0:00:04]}  Bxc4 {[%clk 0:00:10]} 44. a4 {[%clk 0:00:05]}  Ke6 {[%clk 0:00:09]} 45. Bd2 {[%clk 0:00:04]}  Bd5 {[%clk 0:00:09]} 46. Be2 {[%clk 0:00:04]}  Rg2+ {[%clk 0:00:08]} 0-1


[Site "https://www.chess.com"]

[Event "Titled Tuesday Blitz August 22 Early 2023"]
[White "Paravyan, David"]
[Black "Kravtsiv, Martyn"]
[WhiteFideId "4194985"]
[BlackFideId "14113147"]
[WhiteElo "2975"]
[BlackElo "2865"]
[Result "1/2-1/2"]
[Round "5"]
[TimeControl "180+1"]
[Date "2023.08.22"]
[WhiteClock "0:00:49"]
[BlackClock "0:00:46"]
[Board "7"]

1. e4 {[%clk 0:02:45]}  e5 {[%clk 0:02:59]} 2. Nf3 {[%clk 0:02:45]}  Nc6 {[%clk 0:02:59]} 3. Bb5 {[%clk 0:02:46]}  a6 {[%clk 0:02:59]} 4. Ba4 {[%clk 0:02:47]}  Nf6 {[%clk 0:02:58]} 5. O-O {[%clk 0:02:47]}  Be7 {[%clk 0:02:58]} 6. Re1 {[%clk 0:02:47]}  b5 {[%clk 0:02:57]} 7. Bb3 {[%clk 0:02:47]}  O-O {[%clk 0:02:58]} 8. h3 {[%clk 0:02:48]}  Bb7 {[%clk 0:02:49]} 9. d3 {[%clk 0:02:48]}  d6 {[%clk 0:02:49]} 10. a3 {[%clk 0:02:47]}  Qd7 {[%clk 0:02:47]} 11. Nc3 {[%clk 0:02:47]}  h6 {[%clk 0:02:46]} 12. Nd5 {[%clk 0:02:45]}  Nxd5 {[%clk 0:02:30]} 13. exd5 {[%clk 0:02:43]}  Nd4 {[%clk 0:02:30]} 14. Nxd4 {[%clk 0:02:41]}  exd4 {[%clk 0:02:31]} 15. a4 {[%clk 0:02:20]}  Rfe8 {[%clk 0:02:26]} 16. axb5 {[%clk 0:02:20]}  axb5 {[%clk 0:02:25]} 17. Rxa8 {[%clk 0:02:20]}  Bxa8 {[%clk 0:02:26]} 18. Qe2 {[%clk 0:02:20]}  Kf8 {[%clk 0:02:24]} 19. Qf3 {[%clk 0:02:07]}  Bg5 {[%clk 0:02:12]} 20. Rxe8+ {[%clk 0:02:03]}  Qxe8 {[%clk 0:02:13]} 21. Bxg5 {[%clk 0:02:04]}  Qe1+ {[%clk 0:02:11]} 22. Kh2 {[%clk 0:02:04]}  hxg5 {[%clk 0:02:11]} 23. Qh5 {[%clk 0:01:56]}  Qxf2 {[%clk 0:01:21]} 24. Qxg5 {[%clk 0:01:37]}  f6 {[%clk 0:01:21]} 25. Qg4 {[%clk 0:01:37]}  Bb7 {[%clk 0:01:19]} 26. h4 {[%clk 0:01:26]}  Qe3 {[%clk 0:01:19]} 27. Qd7 {[%clk 0:01:16]}  Qe7 {[%clk 0:01:11]} 28. Qxb5 {[%clk 0:01:07]}  Qe5+ {[%clk 0:01:10]} 29. Kg1 {[%clk 0:01:00]}  Qe1+ {[%clk 0:01:09]} 30. Kh2 {[%clk 0:01:01]}  Qxh4+ {[%clk 0:01:09]} 31. Kg1 {[%clk 0:01:02]}  Qe1+ {[%clk 0:01:08]} 32. Kh2 {[%clk 0:01:02]}  Qe5+ {[%clk 0:01:07]} 33. Kg1 {[%clk 0:01:03]}  Bc8 {[%clk 0:00:56]} 34. Qb8 {[%clk 0:00:55]}  Qe1+ {[%clk 0:00:45]} 35. Kh2 {[%clk 0:00:48]}  Qh4+ {[%clk 0:00:46]} 36. Kg1 {[%clk 0:00:48]}  Qe1+ {[%clk 0:00:45]} 37. Kh2 {[%clk 0:00:49]}  Qh4+ {[%clk 0:00:46]} 38. Kg1 {[%clk 0:00:49]}  Qe1+ {[%clk 0:00:46]} 1/2-1/2


[Site "https://www.chess.com"]